Cogmind - Beta 15 @@@ ROGUE MODE // 2025.06.27 @ 10:13:40 Player: satan5 Result: Destroyed by S-43 Plague with Heavy Machine Gun Performance ------------- Evolutions (8) 4000 Regions Visited (27) 5400 Robots Destroyed (193) 965 Value Destroyed (7528) 7528 Prototype IDs (82) 1640 Alien Tech Used (1) 200 Bonus (4888) 4888 TOTAL SCORE: 24621 Bonus ------- High Alert Combat Kills 548 Follower Combat Kills 340 Entered Garrisons 600 Used RIF Installer 2000 Aligned with FarCom 300 Met Data Miner 300 Met Zhirov 300 MAIN.C Attacked Warlord 500 Cogmind --------- Core Integrity 0/1450 Matter 57/300 Energy 98/100 System Corruption 4% Temperature Cool (0) Movement Core (50) Location -2/Research Parts ------- > --- POWER (2) -------- (None) > --- PROPULSION (8) --- (None) > --- UTILITY (10) ----- Advanced Signal Interpreter Authchip [Weapon] Relay Coupler [Grunt] (31) Relay Coupler [Grunt] (20) Relay Coupler [Sentry] (1) > --- WEAPON (3) ------- (None) > --- INVENTORY (5) ---- Advanced Plasma Rifle Long-range Proton Cannon Long-range Proton Cannon Long-range Proton Cannon Advanced Remote Datajack Peak State ------------ > --- POWER ------------ Particle Reactor Improved Quantum Reactor > --- PROPULSION ------- Cooled Gravmag System Cooled Gravmag System Cooled Gravmag System Improved Antigrav System Improved Antigrav System Improved Antigrav System Improved Antigrav System Cooled Linear Gravjet > --- UTILITY ---------- Advanced Heat Sink Large Storage Unit Long-range Sensor Array Advanced Signal Interpreter Advanced Target Analyzer Improved Cloaking Device Advanced Hacking Suite Experimental Hacking Suite Relay Coupler [Grunt] Relay Coupler [Sentry] > --- WEAPON ----------- Advanced Plasma Rifle Advanced Plasma Rifle Advanced Plasma Rifle > --- INVENTORY -------- Light Quantum Reactor Reinforced Quantum Reactor Improved Antigrav System Improved Linear Gravjet Advanced Cryofiber Web Authchip [Weapon] Relay Coupler [Grunt] Relay Coupler [Sentry] Advanced Plasma Rifle Long-range Proton Cannon Long-range Proton Cannon Long-range Proton Cannon Micro-nuke Launcher Advanced Remote Datajack Plasma Lance [Rating: 163] Favorites ----------- Power Fusion Reactor Engine Ion Engine Power Core Neutrino Core Reactor Fusion Reactor Propulsion Improved Airjet Leg Aluminum Leg Hover Unit Improved Airjet Utility Large Storage Unit Device Advanced Sensor Array Storage Large Storage Unit Processor Advanced Signal Interpreter Hackware Relay Coupler [Grunt] Protection Improved Propulsion Shielding Weapon Enhanced Autogun Energy Gun Cooled Pulse Rifle Energy Cannon Guided Plasma Cannon Ballistic Gun Enhanced Autogun Launcher Heavy Rocket Launcher Special Weapon Remote Datajack Impact Weapon Heavy Mace Piercing Weapon Plasma Lance Special Melee Weapon Advanced Datajack Build | -11 -10 -10 -10 -9 -8 -8 -8 -8 -7 -7 -7 -7 -6 -6 -6 -5 -5 -5 -5 -4 -4 -4 -4 -4 -3 -3 -2 ------- Run | Yrd Mat Min Exi Min Mat Gar Mat Gar Fac Low Low Dat Pro Fac Gar Fac Upp Upp Zhi Pro Fac Upp Upp War Pro Res Res Slots Evolved 16 | . . . . . 4 . . . 2 . . . . 2 . 2 . . . . 2 . . . . 2 2 Power 1 | . . . . . . . . . . . . . . . . . . . . . 1 . . . . . . Propulsion 6 | . . . . . 2 . . . 1 . . . . . . 1 . . . . 1 . . . . . 1 Utility 8 | . . . . . 2 . . . 1 . . . . 2 . . . . . . . . . . . 2 1 Weapon 1 | . . . . . . . . . . . . . . . . 1 . . . . . . . . . . . Parts Attached 163 | 6 1 . . 1 9 1 6 12 21 1 1 1 1 9 9 10 . . 5 . 6 4 . . 1 34 24 Power 18 | 1 . . . . 1 . 2 1 2 . . . . 2 . 1 . . 1 . 1 . . . . 3 3 Engine 6 | 1 . . . . . . 2 1 1 . . . . 1 . . . . . . . . . . . . . Core 5 | . . . . . 1 . . . 1 . . . . 1 . 1 . . . . 1 . . . . . . Reactor 7 | . . . . . . . . . . . . . . . . . . . 1 . . . . . . 3 3 Propulsion 57 | 2 . . . . 4 . 1 7 12 . . 1 . 1 2 6 . . 2 . 1 . . . 1 8 9 Treads . | . . . . . . . . . . . . . . . . . . . . . . . . . . . . Leg 14 | 2 . . . . 4 . 1 7 . . . . . . . . . . . . . . . . . . . Wheel . | . . . . . . . . . . . . . . . . . . . . . . . . . . . . Hover 43 | . . . . . . . . . 12 . . 1 . 1 2 6 . . 2 . 1 . . . 1 8 9 Flight . | . . . . . . . . . . . . . . . . . . . . . . . . . . . . Utility 51 | 1 1 . . 1 2 1 . 2 4 1 1 . 1 4 5 1 . . 2 . 2 1 . . . 16 5 Device 20 | . . . . 1 . 1 . . 3 1 . . 1 1 1 1 . . . . 2 1 . . . 6 1 Storage 5 | 1 1 . . . . . . 1 . . . . . . . . . . 1 . . . . . . . 1 Processor 10 | . . . . . 1 . . 1 1 . 1 . . 1 . . . . . . . . . . . 5 . Hackware 13 | . . . . . 1 . . . . . . . . 2 4 . . . . . . . . . . 3 3 Protection 3 | . . . . . . . . . . . . . . . . . . . 1 . . . . . . 2 . Artifact . | . . . . . . . . . . . . . . . . . . . . . . . . . . . . Weapon 37 | 2 . . . . 2 . 3 2 3 . . . . 2 2 2 . . . . 2 3 . . . 7 7 Energy Gun 12 | 2 . . . . . . . . 3 . . . . 1 . . . . . . 1 . . . . . 5 Energy Cannon 5 | . . . . . 1 . 1 . . . . . . . . 2 . . . . . . . . . . 1 Ballistic Gun 9 | . . . . . 1 . 1 2 . . . . . 1 . . . . . . . . . . . 4 . Ballistic Cannon . | . . . . . . . . . . . . . . . . . . . . . . . . . . . . Launcher 3 | . . . . . . . . . . . . . . . 1 . . . . . . 1 . . . 1 . Special Weapon 4 | . . . . . . . . . . . . . . . 1 . . . . . . 1 . . . 1 1 Impact Weapon 1 | . . . . . . . 1 . . . . . . . . . . . . . . . . . . . . Slashing Weapon . | . . . . . . . . . . . . . . . . . . . . . . . . . . . . Piercing Weapon 2 | . . . . . . . . . . . . . . . . . . . . . 1 . . . . 1 . Special Melee Weapon 1 | . . . . . . . . . . . . . . . . . . . . . . 1 . . . . . Unidentified Prototypes 29 | . . . . 1 1 . 1 . 6 . . . . 2 . 1 . . 4 . 2 . . . . 7 4 Parts Lost 47 | . . . . . 1 . . 11 . . . . . . 4 . . . . . . . . 1 . 7 23 Power 4 | . . . . . . . . 2 . . . . . . . . . . . . . . . . . 1 1 Propulsion 26 | . . . . . . . . 7 . . . . . . 2 . . . . . . . . 1 . 3 13 Utility 11 | . . . . . . . . 1 . . . . . . 1 . . . . . . . . . . 2 7 Weapon 6 | . . . . . 1 . . 1 . . . . . . 1 . . . . . . . . . . 1 2 Highest Loss Streak 15 | . . . . . 1 . . 3 . . . . . . 4 . . . . . . . . 1 . 4 15 To Critical Strikes . | . . . . . . . . . . . . . . . . . . . . . . . . . . . . Average Backups 13 | 1 4 7 12 14 14 14 14 14 14 15 14 12 12 14 14 14 15 15 15 15 14 14 15 15 14 14 13 Power 1 | . 1 1 4 5 3 1 1 . . 1 1 1 1 1 1 1 1 1 1 1 . . . . . . 1 Propulsion 3 | . . 2 3 3 3 4 5 6 5 6 6 5 5 5 4 2 3 3 3 4 3 3 3 3 2 1 1 Utility 2 | . 1 2 3 3 2 3 3 2 1 . . . . 1 1 2 3 3 3 3 4 3 4 4 4 5 3 Weapon 5 | . 1 1 1 3 4 6 5 4 6 8 7 6 6 6 6 8 7 7 6 6 6 6 6 6 6 6 5 Tool/Special . | . . . . . . . . . . . . . . . . . . . . . . . . . . . . Unused Backups 35 | . . . . . 8 1 1 2 8 . . . . 2 1 3 . . . . 1 . . . . 3 5 Power 9 | . . . . . 4 1 . . . . . . . 1 . . . . . . . . . . . 1 2 Propulsion 6 | . . . . . . . . 1 3 . . . . . . 1 . . . . . . . . . . 1 Utility 9 | . . . . . 2 . . 1 2 . . . . 1 . 1 . . . . 1 . . . . 1 . Weapon 10 | . . . . . 2 . 1 . 2 . . . . . 1 1 . . . . . . . . . 1 2 Tool/Special 1 | . . . . . . . . . 1 . . . . . . . . . . . . . . . . . . Average Slot Usage (%) 96 | . 85 85 85 87 98 100 100 94 96 100 98 100 100 99 97 99 94 94 94 94 96 100 100 100 100 99 87 Engine 4 | . 14 14 14 14 6 . 7 8 2 7 7 7 7 6 3 . . . . . . . . . . . . Core 2 | . . . . . 2 9 1 . 3 . . . . . 2 5 5 5 3 . 5 5 5 5 5 2 . Reactor 1 | . . . . . . . . . . . . . . . . . . . 1 5 5 5 5 5 5 6 6 Leg 12 | . 28 28 28 28 35 36 36 34 3 . . . . . . . . . . . . . . . . . . Hover 21 | . . . . . . . . . 33 38 36 38 38 33 32 34 35 35 35 35 35 36 36 36 36 32 27 Device 8 | . . . . 2 9 9 9 1 5 7 5 . . 10 6 10 11 11 11 11 12 15 15 15 15 12 11 Storage 7 | . 14 14 14 14 9 9 9 9 7 7 7 7 7 6 6 5 5 5 5 5 5 5 5 5 5 4 3 Processor 7 | . . . . . 8 9 9 12 15 15 15 23 22 8 6 5 5 5 5 5 5 5 5 5 5 7 7 Hackware 10 | . . . . . 8 9 9 9 7 7 7 7 7 19 24 16 11 11 11 11 10 10 10 10 10 15 16 Energy Gun 7 | . 28 28 28 28 6 . . . 3 15 15 15 15 13 8 . . . . . . . 5 10 10 . 7 Energy Cannon 1 | . . . . . 7 9 3 . . . . . . . . 1 . . . . . . . . . 3 . Ballistic Gun 5 | . . . . . 3 9 14 17 10 . . . . . . 8 11 11 11 9 8 5 4 . . 6 1 Piercing Weapon 1 | . . . . . . . . . . . . . . . . . . . . . 3 5 5 5 5 2 1 Peak Build Rating 163 | 6 7 7 10 19 44 45 42 39 66 66 66 59 60 74 74 90 90 90 99 95 114 114 114 114 113 141 163 Average Rating 68 | 5 6 6 8 12 37 42 37 32 55 65 63 59 59 72 70 80 90 90 92 95 110 112 113 113 113 128 135 On Entrance 64 | . 6 6 7 10 19 44 41 34 28 66 66 55 59 59 74 70 90 90 90 95 95 109 113 114 108 113 139 Naked Turns . | . . . . . . . . . . . . . . . . . . . . . . . . . . . . Heaviest Build 76 | 13 28 28 28 29 39 39 42 35 40 40 40 39 42 44 47 53 52 52 54 58 72 66 66 65 65 74 76 Greatest Support 106 | 20 20 20 20 20 54 54 54 57 45 44 44 45 45 46 46 62 53 53 65 65 74 74 74 80 74 76 106 Greatest Overweight (x) 3 | 3 1 1 1 1 1 . . 1 . . 1 . . . 1 1 . . 1 . . . . 1 . 1 1 Average Overweight (x) . | . . 1 1 1 . . . . . . . . . . . . . . . . . . . . . . . Largest Inventory Capacity 15 | 8 15 15 15 15 15 15 15 15 15 15 15 15 15 15 15 15 15 15 15 15 15 15 15 15 15 15 15 Average Capacity 14 | 7 14 15 15 15 15 15 15 15 15 15 15 15 15 15 15 15 15 15 15 15 15 15 15 15 15 15 13 Most Carried 15 | 4 5 9 14 14 15 15 15 15 15 15 15 12 15 15 15 15 15 15 15 15 15 15 15 15 14 15 15 Average Carried 13 | 1 4 7 12 14 14 14 14 14 14 15 14 12 12 14 14 14 15 15 14 15 14 14 15 15 14 14 13 Final Capacity 15 | 8 15 15 15 15 15 15 15 15 15 15 15 15 15 15 15 15 15 15 15 15 15 15 15 15 15 15 5 Final Carried 15 | 3 5 9 14 14 15 15 15 15 15 15 13 12 15 15 15 15 15 15 15 15 13 15 15 15 14 15 5 Class Distribution -------------------- 33% | Mutant 10% | Hacker-Mutant 10% | Bothacker-Sprinter 10% | Skirmisher 9% | Bothacker-Scout 7% | Scavenger-Mutant 7% | Bothacker-Ninja 5% | Bothacker-Mutant Dominant Class ---------------- Mutant | -10/Materials Mutant | -10/Mines Mutant | -10/Exiles Mutant | -9/Mines Skirmisher | -8/Materials Mutant | -8/Garrison Mutant | -8/Materials Mutant | -8/Garrison Mutant | -7/Factory Mutant | -7/Lower Caves Mutant | -7/Lower Caves Mutant | -7/Data Miner Mutant | -6/Proximity Caves Hacker-Mutant | -6/Factory Hacker-Mutant | -6/Garrison Bothacker-Skirmisher | -5/Factory Bothacker-Mutant | -5/Upper Caves Bothacker-Mutant | -5/Upper Caves Bothacker-Mutant | -5/Zhirov Bothacker-Sprinter | -4/Proximity Caves Bothacker-Sprinter | -4/Factory Bothacker-Ninja | -4/Upper Caves Bothacker-Ninja | -4/Upper Caves Bothacker-Scout | -4/Warlord Bothacker-Scout | -3/Proximity Caves Bothacker-Sprinter | -3/Research Scavenger-Sprinter | -2/Research Resources | -11 -10 -10 -10 -9 -8 -8 -8 -8 -7 -7 -7 -7 -6 -6 -6 -5 -5 -5 -5 -4 -4 -4 -4 -4 -3 -3 -2 ----------- Run | Yrd Mat Min Exi Min Mat Gar Mat Gar Fac Low Low Dat Pro Fac Gar Fac Upp Upp Zhi Pro Fac Upp Upp War Pro Res Res Matter Collected 4953 | 184 86 . . . 130 43 186 935 565 104 17 . 20 136 194 436 10 . . 84 255 149 38 87 . 1023 271 Remotely . | . . . . . . . . . . . . . . . . . . . . . . . . . . . . Salvage Created 8875 | 166 104 110 . 73 970 839 433 1267 704 . 26 . 25 293 894 363 67 . . 22 626 117 83 . . 1324 369 Parts 470 | 8 7 4 . 11 64 41 17 84 36 . 3 . 2 12 45 16 . . . 2 20 15 1 . . 74 8 Haulers Intercepted 15 | . . . . . 3 . 1 . 5 . . . . . . 3 . . . . 1 . . . . 2 . Recyclers Shooed 6 | . . . . 1 1 . . . 1 . . . . . . . . . . . . . . . . 2 1 Parts Field Recycled . | . . . . . . . . . . . . . . . . . . . . . . . . . . . . Retrieved Matter . | . . . . . . . . . . . . . . . . . . . . . . . . . . . . Parts Self-Destructed 26 | . . . . . . . . . . . . . 2 . . . 8 . . 4 . 12 . . . . . Prevented 2 | . . . . . . . . . . . . . 2 . . . . . . . . . . . . . . Kills | -11 -10 -10 -10 -9 -8 -8 -8 -8 -7 -7 -7 -7 -6 -6 -6 -5 -5 -5 -5 -4 -4 -4 -4 -4 -3 -3 -2 ------- Run | Yrd Mat Min Exi Min Mat Gar Mat Gar Fac Low Low Dat Pro Fac Gar Fac Upp Upp Zhi Pro Fac Upp Upp War Pro Res Res Combat Hostiles Destroyed 127 | . 4 . . 3 16 18 8 27 3 . 1 . . 3 20 1 . . . 2 3 5 1 . . 11 1 Melee 3 | . . . . . . . . . . . . . . . . . . . . . 3 . . . . . . Guns 69 | . 4 . . 3 . . 5 23 3 . 1 . . 3 13 1 . . . . . . 1 . . 11 1 Cannons 36 | . . . . . 16 18 2 . . . . . . . . . . . . . . . . . . . . AOE 15 | . . . . . . . . 3 . . . . . . 5 . . . . 2 . 5 . . . . . Classes Destroyed 19 | 2 3 1 . . 3 2 2 1 1 . 1 . 1 . . . 1 . . . . . . . . . 1 Worker 4 | . . 1 . 1 . . . . . . . . . 1 . . . . . . 1 . . . . . . Builder 5 | . . . . . . . 1 . 2 . . . . . . . . . . . . . . . . 2 . Tunneler 5 | 3 . . . . 1 . . . . . . . . . . . . . . . . . . . . 1 . Hauler 15 | . . . . . 3 . 1 . 5 . . . . . . 3 . . . . 1 . . . . 2 . Recycler 9 | 1 . 1 . . . . . . 2 . . . . 1 . . . . . . 1 . . . . 1 2 Minesweeper 4 | . . . . . . . . . . . . . 1 . . . 1 . . . . 2 . . . . . Operator 7 | . 1 . . . 1 . . . 1 . . . . 1 . 1 . . . . . . . . . 1 1 Watcher 17 | . . . . . 3 . . . 2 . . . . 1 . 1 . . . . 6 . . . . 3 1 Swarmer 36 | . 3 . . 3 4 3 2 3 . . . . . 3 7 1 . . . 2 . 5 . . . . . Cutter 1 | . . . . . . . . . . . . . . . . . . . . . . . . . . . 1 Grunt 35 | . 1 . . . 4 10 3 10 1 . . . . . 4 . . . . . . . 1 . . 1 . Brawler 3 | . . . . . . 2 . . . . . . . . 1 . . . . . . . . . . . . Duelist 3 | . . . . . . . . . 2 . . . . . 1 . . . . . . . . . . . . Sentry 22 | . . . . . 8 2 2 3 . . . . . . 4 . . . . . . . . . . 3 . Specialist 1 | . . . . . . . . 1 . . . . . . . . . . . . . . . . . . . Hunter 7 | . . . . . . . 1 4 . . . . . . 2 . . . . . . . . . . . . Programmer 18 | . . . . . . 1 . 6 . . . . . . 1 . . . . . 3 . . . . 7 . Samaritan 1 | . . . . . . . . . . . . . . . . . 1 . . . . . . . . . . Master Thief 1 | . . . . . . . . . . . 1 . . . . . . . . . . . . . . . . Best Kill Streak 6 | 4 3 1 . 3 4 6 4 5 2 . 1 . 1 3 4 1 1 . . 2 3 5 1 . . 4 1 Combat Bots Only 6 | . 3 . . 3 4 6 3 5 2 . 1 . . 3 4 1 . . . 2 2 5 1 . . 3 1 Max Kills in Single Turn 5 | 1 1 1 . 2 1 1 1 3 1 . 1 . 1 1 3 1 1 . . 2 1 5 1 . . 1 1 Gunslinging 1 | . . . . . . . . 1 . . . . . . . . . . . . . . . . . . . Exploded 5 | . . . . . . . . 3 . . . . . . 2 . . . . 2 . 5 . . . . . Melee 1 | . . . . . . . . . . . . . . . . . . . . . 1 . . . . . . Uniques/NPCs Destroyed . | . . . . . . . . . . . . . . . . . . . . . . . . . . . . Combat | -11 -10 -10 -10 -9 -8 -8 -8 -8 -7 -7 -7 -7 -6 -6 -6 -5 -5 -5 -5 -4 -4 -4 -4 -4 -3 -3 -2 -------- Run | Yrd Mat Min Exi Min Mat Gar Mat Gar Fac Low Low Dat Pro Fac Gar Fac Upp Upp Zhi Pro Fac Upp Upp War Pro Res Res Hostile Shots Fired 777 | . 12 . . 4 17 1 15 173 13 . 13 . . 19 68 7 5 . . 1 30 . 13 39 . 106 241 Missed 278 | . 2 . . 1 6 1 4 37 5 . 7 . . 6 26 3 2 . . . 16 . 4 28 . 29 101 Hits 499 | . 10 . . 3 11 . 11 136 8 . 6 . . 13 42 4 3 . . 1 14 . 9 11 . 77 140 Melee 9 | . . . . . . . . . . . 6 . . . 2 . . . . . . . . . . . 1 Projectile 490 | . 10 . . 3 11 . 11 136 8 . . . . 13 40 4 3 . . 1 14 . 9 11 . 77 139 AOE 2 | . . . . . . . . . . . . . . . . . . . . . 1 . . . . . 1 Critical Strikes 28 | . . . . . 1 . . 8 1 . . . . . 1 . . . . . 1 . . 1 . 6 9 Part Disruptions 2 | . . . . . . . . . . . . . . . . . . . . . . . . 2 . . . Damage Taken 8712 | . 97 38 . 24 156 63 148 1425 86 . 14 . . 218 753 66 56 . . 32 389 . 146 272 . 1479 3250 Core 2124 | . 9 19 . . 22 . 6 169 27 . . . . 75 174 . . . . . . . . 13 . 147 1463 Absorbed by Shields 393 | . . . . . . . . 307 . . . . . . 86 . . . . . . . . . . . . Redirected to Shielding 16 | . . . . . . . . . . . . . . . . . . . . . . . . . . 16 . Ignored by Resistances 120 | . . . . . . . . . . . . . . . . . . . . . . . . . . 120 . Regen/Repaired (Parts) 289 | . . . . . . . . . . . . . . 150 . 106 . . . . . . . . . 33 . Core Remaining (%) 88 | 100 . . . 88 . . . 64 . . . . 96 . 70 . . . . 100 . . . . 98 88 . Volleys Fired 536 | 8 10 6 . 6 60 47 25 101 41 4 7 . 7 17 68 12 . . . 1 13 7 15 3 . 60 18 Largest 3 | 2 2 2 . 2 1 1 2 2 2 2 2 . 2 2 2 3 . . . 1 2 2 2 1 . 3 3 Hottest 264 | 80 80 80 . 80 120 120 120 60 120 120 120 . 120 120 120 70 . . . 39 78 78 138 78 . 162 264 Shots Fired 918 | 16 20 12 . 12 60 47 40 197 82 8 14 . 14 30 86 25 . . . 1 24 9 16 3 . 156 46 Gun 767 | 16 20 12 . 12 7 1 30 196 82 8 14 . 14 30 59 25 . . . . 24 7 16 3 . 147 44 Cannon 116 | . . . . . 53 46 10 1 . . . . . . . . . . . . . . . . . 6 . Launcher 7 | . . . . . . . . . . . . . . . 5 . . . . 1 . 1 . . . . . Special 28 | . . . . . . . . . . . . . . . 22 . . . . . . 1 . . . 3 2 Kinetic 489 | . . . . . . 1 30 196 70 . . . . . 3 22 . . . . 22 2 . . . 137 6 Thermal 348 | 8 10 6 . 6 53 46 8 . 12 8 14 . 14 30 56 3 . . . . 2 5 16 3 . 10 38 Explosive 7 | . . . . . . . . . . . . . . . 5 . . . . 1 . 1 . . . . . Electromagnetic 46 | 8 10 6 . 6 7 . 2 1 . . . . . . . . . . . . . . . . . 6 . Robot Hit Streak 30 | 5 3 7 . 5 9 12 19 9 4 . 4 . 3 5 20 4 . . . . 4 . 4 . . 30 13 Robot Miss Streak 5 | 2 2 1 . 1 3 . 5 5 5 . 3 . 2 2 2 2 . . . . 3 . . . . 4 5 Penetration Max 1 | . . . . . . . . . . . . . . . . . . . . . . . . . . 1 . Secondary Targets 8 | . . . . . . . 1 4 . . . . . . 1 . . . . . . . . . . 2 . Max Gunslinging Chain 1 | . . . . . . . 1 1 . . . . . . 1 . . . . . . . . . . 1 . Shots Hit Robots 532 | 11 10 9 . 9 15 3 20 127 46 . 7 . 4 18 59 21 4 . . . 36 5 4 . . 103 21 Core Hits 258 | 4 6 4 . 5 24 18 13 51 16 . 1 . 2 7 25 10 . . . 6 12 6 1 . . 38 9 Critical Kills 10 | . . . . . . . . 2 1 . . . . . . 2 . . . . . . . . . 5 . Critical Parts Destroyed 23 | . . . . . . . 1 2 6 . . . . . . . 1 . . . 1 . . . . 11 1 Critical Strikes 48 | 1 1 . . . . . 1 5 7 . . . . 1 2 2 1 . . . 3 . . . . 18 6 Burn 9 | . . . . . . . . . . . . . . 1 2 . . . . . . . . . . 1 5 Destroy 29 | . . . . . . . 1 5 5 . . . . . . . . . . . . . . . . 17 1 Corrupt 2 | 1 1 . . . . . . . . . . . . . . . . . . . . . . . . . . Smash 6 | . . . . . . . . . 2 . . . . . . 2 1 . . . 1 . . . . . . Impale 2 | . . . . . . . . . . . . . . . . . . . . . 2 . . . . . . Melee Attacks 114 | . . . . . . . 2 2 8 . . . . . . 7 5 . . . 38 8 12 . . 18 14 Impact 32 | . . . . . . . 2 2 8 . . . . . . 7 5 . . . 8 . . . . . . Slashing . | . . . . . . . . . . . . . . . . . . . . . . . . . . . . Piercing 82 | . . . . . . . . . . . . . . . . . . . . . 30 8 12 . . 18 14 Sneak Attacks 21 | . . . . . . . . . 6 . . . . . . 4 2 . . . 3 2 . . . 4 . Combat Hostiles . | . . . . . . . . . . . . . . . . . . . . . . . . . . . . Follow-up Attacks . | . . . . . . . . . . . . . . . . . . . . . . . . . . . . Damage Inflicted 19069 | 172 118 139 . 117 1656 1380 654 2668 1338 . 271 . 152 715 1705 746 232 . . 174 1525 729 184 . . 3850 544 Guns 10338 | 134 118 113 . 117 38 . 265 2185 853 . 271 . 152 680 1294 250 . . . . 197 . 184 . . 2943 544 Cannons 3345 | . . . . . 1547 1380 264 5 . . . . . . . . . . . . . . . . . 149 . Explosions 1597 | 38 . 26 . . 71 . 125 478 . . . . . . 411 . . . . 174 . 274 . . . . . Melee 3754 | . . . . . . . . . 485 . . . . . . 496 232 . . . 1328 455 . . . 758 . Ramming 35 | . . . . . . . . . . . . . . 35 . . . . . . . . . . . . . Kinetic 6460 | . . . . . . . 265 2185 663 . . . . . 18 210 . . . . 197 . . . . 2822 100 Thermal 6837 | 105 41 69 . 57 1575 1380 252 . 190 . 271 . 152 680 1276 40 . . . . . . 184 . . 121 444 Explosive 902 | . . . . . 43 . . . . . . . . . 411 . . . . 174 . 274 . . . . . Electromagnetic 1081 | 67 77 70 . 60 38 . 137 483 . . . . . . . . . . . . . . . . . 149 . Impact 1578 | . . . . . . . . . 485 . . . . . . 496 232 . . . 365 . . . . . . Slashing . | . . . . . . . . . . . . . . . . . . . . . . . . . . . . Piercing 2176 | . . . . . . . . . . . . . . . . . . . . . 963 455 . . . 758 . Highest Corruption 19 | . . . . . 2 2 12 17 . . . . . . . . . . . . 3 3 3 3 3 19 4 Average Corruption 6 | . . . . . 2 2 5 15 . . . . . . . . . . . . 2 3 3 3 3 13 3 Corruption Purged . | . . . . . . . . . . . . . . . . . . . . . . . . . . . . Corruption Blocked . | . . . . . . . . . . . . . . . . . . . . . . . . . . . . Effects 142 | . . . . . 7 10 12 58 . . . . . . . . . . . . 8 5 5 16 2 14 5 Message Errors 29 | . . . . . 4 1 3 8 . . . . . . . . . . . . 1 3 1 5 1 1 1 Matter Fused 27 | . . . . . . 4 1 11 . . . . . . . . . . . . 3 . 1 1 1 2 3 Heat Flow Errors 12 | . . . . . 1 . . 6 . . . . . . . . . . . . 1 . . 3 . 1 . Energy Discharges 22 | . . . . . 1 1 3 10 . . . . . . . . . . . . 2 . 1 2 . 2 . Parts Fused 1 | . . . . . . . . . . . . . . . . . . . . . . . . 1 . . . Data Loss (minor) 16 | . . . . . 1 2 2 6 . . . . . . . . . . . . . . 1 3 . 1 . Data Loss (major) 7 | . . . . . . . . 3 . . . . . . . . . . . . . . . 1 . 2 1 Misfires 11 | . . . . . . 1 2 4 . . . . . . . . . . . . 1 1 . . . 2 . Alerts 4 | . . . . . . . 1 2 . . . . . . . . . . . . . 1 . . . . . Weapon Failures 13 | . . . . . . 1 . 8 . . . . . . . . . . . . . . 1 . . 3 . Overload Shots 135 | . . . . . . . . . 12 8 8 . 14 31 35 1 . . . . 2 2 16 3 . 3 . Effects 8 | . . . . . . . . . . . 1 . . 4 3 . . . . . . . . . . . . Energy Bleed 2 | . . . . . . . . . . . 1 . . . 1 . . . . . . . . . . . . Heat Surge 3 | . . . . . . . . . . . . . . 2 1 . . . . . . . . . . . . Short Circuit 3 | . . . . . . . . . . . . . . 2 1 . . . . . . . . . . . . Overflow Damage 1177 | . . . . . 59 22 . . 214 . . . . . 53 15 135 . . . 294 265 . . . 120 . Projectiles 81 | . . . . . 59 22 . . . . . . . . . . . . . . . . . . . . . Explosions 53 | . . . . . . . . . . . . . . . 53 . . . . . . . . . . . . Melee 1043 | . . . . . . . . . 214 . . . . . . 15 135 . . . 294 265 . . . 120 . Knockbacks 4 | . . . . . . . . . 2 . . . . . . . 1 . . . 1 . . . . . . Impact 4 | . . . . . . . . . 2 . . . . . . . 1 . . . 1 . . . . . . Kinetic . | . . . . . . . . . . . . . . . . . . . . . . . . . . . . Secondary . | . . . . . . . . . . . . . . . . . . . . . . . . . . . . Self-Inflicted Damage 145 | . . 38 . . 27 . . . . . . . . 17 63 . . . . . . . . . . . . Shots 5 | . . 1 . . 1 . . . . . . . . . 3 . . . . . . . . . . . . Rammed 1 | . . . . . . . . . . . . . . 1 . . . . . . . . . . . . . Targets Rammed 1 | . . . . . . . . . . . . . . 1 . . . . . . . . . . . . . Kicked . | . . . . . . . . . . . . . . . . . . . . . . . . . . . . Crushed . | . . . . . . . . . . . . . . . . . . . . . . . . . . . . Highest Temperature 430 | 108 90 66 . 54 426 430 102 250 155 103 204 . 166 302 233 20 . . . . 223 108 380 408 12 425 333 Average Temperature 89 | 47 31 29 . 23 155 155 36 74 29 48 113 . 76 87 60 7 . . . . 44 30 87 90 6 162 90 Received Heat Transfer 945 | . 24 . . . 54 . 36 342 57 . . . . . 84 9 . . . . 63 . 12 15 . 78 171 Effects 27 | . . . . . 3 6 . . . . . . . . . . . . . . . . 3 4 . 8 3 Shutdowns 10 | . . . . . 1 2 . . . . . . . . . . . . . . . . 2 1 . 4 . Energy Bleed 2 | . . . . . 1 . . . . . . . . . . . . . . . . . 1 . . . . Interference 8 | . . . . . . 3 . . . . . . . . . . . . . . . . . . . 2 3 Matter Decay 2 | . . . . . . . . . . . . . . . . . . . . . . . . 1 . 1 . Short Circuit 2 | . . . . . 1 . . . . . . . . . . . . . . . . . . 1 . . . Damage (minor) 3 | . . . . . . 1 . . . . . . . . . . . . . . . . . 1 . 1 . Siege Activations . | . . . . . . . . . . . . . . . . . . . . . . . . . . . . Martial Activations . | . . . . . . . . . . . . . . . . . . . . . . . . . . . . Shielding Activations . | . . . . . . . . . . . . . . . . . . . . . . . . . . . . Robots Disrupted . | . . . . . . . . . . . . . . . . . . . . . . . . . . . . Combat Hostiles . | . . . . . . . . . . . . . . . . . . . . . . . . . . . . Robots Corrupted 8 | . . . . . . . 1 1 2 . . . . . . . 2 . . . 2 . . . . . . Combat Hostiles 2 | . . . . . . . 1 1 . . . . . . . . . . . . . . . . . . . Parts Fried 14 | . . 1 . . . . 1 1 4 . . . . . . . 3 . . . 2 . . . . 2 . Impact Corruptions 18 | . . . . . . . . . 6 . . . . . . 1 8 . . . 3 . . . . . . Robots Melted 2 | . . . . . . . . . . . . . . . 2 . . . . . . . . . . . . Combat Hostiles 2 | . . . . . . . . . . . . . . . 2 . . . . . . . . . . . . Parts Melted 32 | . . . . . 4 4 1 . 1 . . . 1 4 6 . . . . . . . 1 . . . 10 Heat Transferred 13226 | 150 100 150 . 125 3570 2998 560 . 250 . 398 . 200 1000 1979 74 . . . . . . 200 . . 198 1274 Parts Sabotaged . | . . . . . . . . . . . . . . . . . . . . . . . . . . . . Parts Stolen 4 | . . . . . . . . . . . 4 . . . . . . . . . . . . . . . . Parts Stripped . | . . . . . . . . . . . . . . . . . . . . . . . . . . . . Power Chain Reactions 3 | 1 . 1 . . 1 . . . . . . . . . . . . . . . . . . . . . . Latent Energy Used 426 | . . . . . . . 275 151 . . . . . . . . . . . . . . . . . . . LE Corruption 8 | . . . . . . . 5 3 . . . . . . . . . . . . . . . . . . . Alert | -11 -10 -10 -10 -9 -8 -8 -8 -8 -7 -7 -7 -7 -6 -6 -6 -5 -5 -5 -5 -4 -4 -4 -4 -4 -3 -3 -2 ------- Run | Yrd Mat Min Exi Min Mat Gar Mat Gar Fac Low Low Dat Pro Fac Gar Fac Upp Upp Zhi Pro Fac Upp Upp War Pro Res Res Maximum Alert Level 3 | . . . . . 1 2 1 3 2 . . . . . 3 2 . . . . 1 . . . . 1 1 Low Security (%) 47 | 100 100 100 . 100 99 29 . . . . . . . 100 17 . . . . . 95 . . . . 80 75 Level 1 28 | . . . . . . 45 100 30 76 . . . . . 15 48 . . . . 4 . . . . 19 24 Level 2 16 | . . . . . . 24 . 45 23 . . . . . 27 51 . . . . . . . . . . . Level 3 7 | . . . . . . . . 23 . . . . . . 38 . . . . . . . . . . . . Level 4 . | . . . . . . . . . . . . . . . . . . . . . . . . . . . . Level 5 . | . . . . . . . . . . . . . . . . . . . . . . . . . . . . High Security . | . . . . . . . . . . . . . . . . . . . . . . . . . . . . Max Security . | . . . . . . . . . . . . . . . . . . . . . . . . . . . . Peak Influence 945 | 10 80 8 . 70 202 560 367 864 452 . . . . 67 945 555 . . . . 242 . . . . 277 282 Initial 495 | . . 7 . . 9 127 273 217 448 . . . . 2 22 495 . . . . 51 . . . . . 146 Average 253 | 1 34 . . 47 52 296 308 500 331 . . . . 27 522 416 . . . . 117 . . . . 98 146 Influence Increases 6042 | 20 105 13 . 75 524 433 291 747 231 . . . 35 191 963 247 60 . . 93 489 195 95 . . 652 583 Destroy 0b10 Robot/C 2680 | . 80 . . 60 320 360 160 540 60 . . . . 60 400 20 40 . . 80 140 100 20 . . 220 20 Destroy 0b10 Robot/NC 330 | 20 5 10 . 5 40 . 10 . 60 . . . 5 20 . 25 5 . . . 45 10 . . . 50 20 Destroy Leader 442 | . 20 . . 10 112 10 52 40 14 . . . . 2 20 6 10 . . 10 34 10 . . . 80 12 Allied During Kill 22 | . . . . . . . . . . . . . . . 1 . 5 . . 3 13 . . . . . . Trap Triggered on 0b10 90 | . . . . . . . . . . . . . . . 60 30 . . . . . . . . . . . Successful Hack 342 | . . . . . 5 26 4 12 58 . . . . 38 8 42 . . . . 60 . . . . 68 21 Disable Machine 120 | . . . . . 15 15 15 . . . . . . . 60 . . . . . . . . . . 15 . Anti-Garrison Action 350 | . . . . . . . . 100 . . . . . . 250 . . . . . . . . . . . . Destroy Structure 271 | . . 3 . . 32 7 20 25 9 . . . . 11 59 4 . . . . 32 . . . . 24 45 Partial Spotted 195 | . . . . . . . . 15 15 . . . . . 45 15 . . . . 30 . . . . 45 30 Lose Combat Pursuer 1200 | . . . . . . 15 30 15 15 . . . 30 60 60 105 . . . . 135 75 75 . . 150 435 Influence Decreases 5809 | 20 85 33 . 50 353 69 517 227 802 175 108 . 30 164 50 882 265 51 54 10 460 162 188 52 . 391 611 Entered New Map 1956 | . . 13 . . 16 69 287 117 406 105 21 . . 3 10 450 115 21 54 . 32 42 28 52 . . 115 Time Decay 2973 | 20 85 20 . 50 327 . 230 . 356 70 87 . 30 161 . 262 150 30 . 10 238 120 160 . . 321 246 Lost Part 460 | . . . . . 10 . . 110 . . . . . . 40 . . . . . . . . . . 70 230 Lost Ally 120 | . . . . . . . . . 40 . . . . . . 20 . . . . 40 . . . . . 20 Purge Threat 300 | . . . . . . . . . . . . . . . . 150 . . . . 150 . . . . . . Squads Dispatched 42 | . 2 . . . 4 . 1 . 5 . . . . 4 . 6 . . . . 6 . . . . 7 7 Investigation 10 | . . . . . 1 . 1 . 1 . . . . 1 . 3 . . . . 1 . . . . 1 1 Extermination 10 | . . . . . . . . . 1 . . . . 1 . 1 . . . . 2 . . . . 2 3 Reinforcement 19 | . 2 . . . . . . . 3 . . . . 2 . 2 . . . . 3 . . . . 4 3 Assault . | . . . . . . . . . . . . . . . . . . . . . . . . . . . . Garrison 3 | . . . . . 3 . . . . . . . . . . . . . . . . . . . . . . Intercept . | . . . . . . . . . . . . . . . . . . . . . . . . . . . . Searches Triggered . | . . . . . . . . . . . . . . . . . . . . . . . . . . . . Construction Impeded 1 | . . . . . . . . . . . . . . 1 . . . . . . . . . . . . . Haulers Reinforced 5 | . . . . . . . . . 1 . . . . . . 1 . . . . 1 . . . . 2 . Active Scanning Responses . | . . . . . . . . . . . . . . . . . . . . . . . . . . . . Cargo Convoy Interrupts . | . . . . . . . . . . . . . . . . . . . . . . . . . . . . Stealth | -11 -10 -10 -10 -9 -8 -8 -8 -8 -7 -7 -7 -7 -6 -6 -6 -5 -5 -5 -5 -4 -4 -4 -4 -4 -3 -3 -2 --------- Run | Yrd Mat Min Exi Min Mat Gar Mat Gar Fac Low Low Dat Pro Fac Gar Fac Upp Upp Zhi Pro Fac Upp Upp War Pro Res Res Distress Signals 9 | . 1 . . . 1 . 1 . . . . . . . . 1 . . . . 1 . . . . 2 2 Communications Jammed . | . . . . . . . . . . . . . . . . . . . . . . . . . . . . Distress Signals . | . . . . . . . . . . . . . . . . . . . . . . . . . . . . Times Spotted 287 | . 8 1 . 1 13 5 7 32 11 . 5 . 2 9 25 15 6 . . 2 29 8 7 15 . 28 58 Peak Tracking Total 20 | . 3 1 . 1 3 4 4 6 3 . 5 . 2 4 4 4 4 . . 2 5 5 3 17 . 7 20 Tactical Retreats 36 | . . . . . . 1 1 1 1 . . . 1 2 3 2 . . . . 3 3 3 . . 4 11 Traps | -11 -10 -10 -10 -9 -8 -8 -8 -8 -7 -7 -7 -7 -6 -6 -6 -5 -5 -5 -5 -4 -4 -4 -4 -4 -3 -3 -2 ------- Run | Yrd Mat Min Exi Min Mat Gar Mat Gar Fac Low Low Dat Pro Fac Gar Fac Upp Upp Zhi Pro Fac Upp Upp War Pro Res Res Traps Triggered 34 | . . . . . 2 2 4 3 2 . . . . 2 7 1 . . . . 2 . . 2 . 2 5 Indirectly . | . . . . . . . . . . . . . . . . . . . . . . . . . . . . Trap Hack Attempts 11 | . . . . . . . . . . . . . . . . . . . . . . 11 . . . . . Triggered . | . . . . . . . . . . . . . . . . . . . . . . . . . . . . Disarmed . | . . . . . . . . . . . . . . . . . . . . . . . . . . . . Reprogrammed 1 | . . . . . . . . . . . . . . . . . . . . . . 1 . . . . . Reused 10 | . . . . . . . . . . . . . . . 6 3 . . . . . . 1 . . . . Traps Extracted 1 | . . . . . . . . . . . . . . . . . . . . . . 1 . . . . . Installed 11 | . . . . . . . . . . . . . 1 . 6 3 . . . . . . 1 . . . . Triggered 10 | . . . . . . . . . . . . . . . 6 3 . . . . . . 1 . . . . Most Traps Carried 7 | . . . . . . . . . . . . . 6 6 6 6 . . . . . 7 7 6 6 6 . Machines | -11 -10 -10 -10 -9 -8 -8 -8 -8 -7 -7 -7 -7 -6 -6 -6 -5 -5 -5 -5 -4 -4 -4 -4 -4 -3 -3 -2 ---------- Run | Yrd Mat Min Exi Min Mat Gar Mat Gar Fac Low Low Dat Pro Fac Gar Fac Upp Upp Zhi Pro Fac Upp Upp War Pro Res Res Machines Disabled 14 | . . . . . 1 1 1 1 . . . . . . 8 . . . . . . . . 1 . 1 . Max in Single Turn 1 | . . . . . 1 1 1 1 . . . . . . 1 . . . . . . . . 1 . 1 . Garrison Access 4 | . . . . . . . . . 1 . . . . . . 1 . . . . . . . . . . 2 Garrison Relay 4 | . . . . . . . . . . . . . . . 4 . . . . . . . . . . . . Machines Repaired . | . . . . . . . . . . . . . . . . . . . . . . . . . . . . Machines Dismantled . | . . . . . . . . . . . . . . . . . . . . . . . . . . . . Machines Sabotaged . | . . . . . . . . . . . . . . . . . . . . . . . . . . . . Overloaded Fab Kills . | . . . . . . . . . . . . . . . . . . . . . . . . . . . . Hacking | -11 -10 -10 -10 -9 -8 -8 -8 -8 -7 -7 -7 -7 -6 -6 -6 -5 -5 -5 -5 -4 -4 -4 -4 -4 -3 -3 -2 --------- Run | Yrd Mat Min Exi Min Mat Gar Mat Gar Fac Low Low Dat Pro Fac Gar Fac Upp Upp Zhi Pro Fac Upp Upp War Pro Res Res Machines Accessed 75 | . . . 2 . 2 3 2 3 9 . . 4 . 7 4 10 1 . 4 . 8 1 . 1 . 6 8 Terminals 36 | . . . . . 1 3 1 3 3 . . . . 4 4 7 . . . . 5 . . . . 2 3 Fabricators 7 | . . . . . . . . . 3 . . . . . . 1 . . . . 1 . . . . 1 1 Repair Stations 5 | . . . . . . . . . 1 . . . . 2 . 1 . . . . . . . . . 1 . Recycling Units 6 | . . . . . . . . . 1 . . . . . . . . . . . 2 . . . . 1 2 Scanalyzers 1 | . . . . . . . . . . . . . . . . . . . . . . . . . . 1 . Garrison Access 7 | . . . . . 1 . 1 . 1 . . . . 1 . 1 . . . . . . . . . . 2 Total Hacks 210 | . . . 10 . 6 3 5 7 19 . . 29 . 18 9 29 1 . 17 . 21 1 . 1 . 13 21 Successful 133 | . . . 10 . 3 3 2 2 7 . . 29 . 11 3 16 1 . 17 . 9 1 . 1 . 6 12 Failed 77 | . . . . . 3 . 3 5 12 . . . . 7 6 13 . . . . 12 . . . . 7 9 Catastrophic 8 | . . . . . . . . 1 1 . . . . . . 2 . . . . 4 . . . . . . Database Lockouts . | . . . . . . . . . . . . . . . . . . . . . . . . . . . . Manual 46 | . . . 1 . 4 . 4 . 1 . . . . 8 . 18 . . . . 6 . . . . 1 3 Terminals 103 | . . . . . 5 3 4 7 10 . . . . 11 9 23 . . . . 14 . . . . 6 11 Fabricators 19 | . . . . . . . . . 6 . . . . . . 3 . . . . 5 . . . . 2 3 Repair Stations 11 | . . . . . . . . . 1 . . . . 6 . 2 . . . . . . . . . 2 . Recycling Units 10 | . . . . . . . . . 1 . . . . . . . . . . . 2 . . . . 2 5 Scanalyzers 1 | . . . . . . . . . . . . . . . . . . . . . . . . . . 1 . Garrison Access 7 | . . . . . 1 . 1 . 1 . . . . 1 . 1 . . . . . . . . . . 2 Terminal Hacks 88 | . . . 10 . . 3 . 2 3 . . 29 . 2 3 5 1 . 17 . 4 1 . 1 . 3 4 Record 25 | . . . 9 . . . . . . . . 11 . . . . . . 5 . . . . . . . . Part Schematic 17 | . . . . . . . . . . . . 12 . . . 1 . . 4 . . . . . . . . Robot Schematic 3 | . . . . . . . . . . . . 3 . . . . . . . . . . . . . . . Robot Analysis 7 | . . . . . . . . . . . . . . . . . . . 4 . . . . . . 2 1 Prototype ID Bank 12 | . . . . . . . . . 1 . . 3 . 2 . . . . 4 . 1 . . . . . 1 Open Door 3 | . . . . . . . . . . . . . . . . . 1 . . . . 1 . 1 . . . Level Access Points 1 | . . . . . . . . . . . . . . . . . . . . . . . . . . . 1 Branch Access Points 2 | . . . . . . . . . 1 . . . . . . 1 . . . . . . . . . . . Emergency Access Points 3 | . . . . . . 1 . 1 . . . . . . 1 . . . . . . . . . . . . Machine Index 1 | . . . . . . . . . 1 . . . . . . . . . . . . . . . . . . Unreport Threat 2 | . . . . . . . . . . . . . . . . 1 . . . . 1 . . . . . . Locate Traps 3 | . . . . . . . . . . . . . . . . 1 . . . . 2 . . . . . . Dispatch Records 1 | . . . . . . . . . . . . . . . . . . . . . . . . . . . 1 Registered Prototypes 1 | . . . . . . . . . . . . . . . . . . . . . . . . . . 1 . Zone Layout 1 | . . . . . . . . . . . . . . . . 1 . . . . . . . . . . . Garrison Registry 1 | . . . . . . 1 . . . . . . . . . . . . . . . . . . . . . Patrol Navigation 1 | . . . . . . . . . . . . . . . 1 . . . . . . . . . . . . Security Stations 3 | . . . . . . 1 . 1 . . . . . . 1 . . . . . . . . . . . . Proto ID Catalog 1 | . . . 1 . . . . . . . . . . . . . . . . . . . . . . . . Fabricator Hacks 7 | . . . . . . . . . 2 . . . . . . 2 . . . . 1 . . . . . 2 Network Status 1 | . . . . . . . . . 1 . . . . . . . . . . . . . . . . . . Load Schematic 3 | . . . . . . . . . . . . . . . . 1 . . . . 1 . . . . . 1 Build 3 | . . . . . . . . . 1 . . . . . . 1 . . . . . . . . . . 1 Repair Station Hacks 8 | . . . . . . . . . . . . . . 4 . 2 . . . . . . . . . 2 . Scan Component 4 | . . . . . . . . . . . . . . 2 . 1 . . . . . . . . . 1 . Repair 4 | . . . . . . . . . . . . . . 2 . 1 . . . . . . . . . 1 . Recycling Unit Hacks 2 | . . . . . . . . . . . . . . . . . . . . . . . . . . . 2 Retrieve Components 2 | . . . . . . . . . . . . . . . . . . . . . . . . . . . 2 Scanalyzer . | . . . . . . . . . . . . . . . . . . . . . . . . . . . . Garrison Access Hacks 7 | . . . . . 1 . 1 . 1 . . . . 1 . 1 . . . . . . . . . . 2 Unlock Access 3 | . . . . . 1 . 1 . . . . . . 1 . . . . . . . . . . . . . Seal Access 4 | . . . . . . . . . 1 . . . . . . 1 . . . . . . . . . . 2 Unauthorized Hacks 21 | . . . . . 2 . 1 . 1 . . . . 4 . 6 . . . . 4 . . . . 1 2 Terminals 18 | . . . . . 2 . 1 . . . . . . 4 . 6 . . . . 3 . . . . 1 1 Assimilate 2 | . . . . . . . . . . . . . . . . 2 . . . . . . . . . . . Botnet 13 | . . . . . 1 . 1 . . . . . . 3 . 3 . . . . 3 . . . . 1 1 Operators 3 | . . . . . 1 . . . . . . . . 1 . 1 . . . . . . . . . . . Fabricators 2 | . . . . . . . . . 1 . . . . . . . . . . . 1 . . . . . . Prioritize 1 | . . . . . . . . . . . . . . . . . . . . . 1 . . . . . . Liberate 1 | . . . . . . . . . 1 . . . . . . . . . . . . . . . . . . Repair Stations . | . . . . . . . . . . . . . . . . . . . . . . . . . . . . Recycling Units 1 | . . . . . . . . . . . . . . . . . . . . . . . . . . . 1 Mask 1 | . . . . . . . . . . . . . . . . . . . . . . . . . . . 1 Scanalyzers . | . . . . . . . . . . . . . . . . . . . . . . . . . . . . Garrison Access . | . . . . . . . . . . . . . . . . . . . . . . . . . . . . Data Cores Recovered 3 | . . . . . 1 . . . . . . . . . . . . . . . . . . . . 1 1 Used 2 | . . . . . . . . . . . . . . . . . . . . . . . . . . 1 1 Hacking Detections 48 | . . . . . 1 . 1 3 7 . . . . 7 1 8 . . . . 8 . . . . 6 6 Full Trace Events 10 | . . . . . . . . 2 1 . . . . . 1 3 . . . . 1 . . . . 1 1 Feedback Events . | . . . . . . . . . . . . . . . . . . . . . . . . . . . . Feedback Blocked . | . . . . . . . . . . . . . . . . . . . . . . . . . . . . Robot Schematics Acquired 3 | . . . . . . . . . . . . 3 . . . . . . . . . . . . . . . Robots Built 2 | . . . . . . . . . 2 . . . . . . . . . . . . . . . . . . Authchips . | . . . . . . . . . . . . . . . . . . . . . . . . . . . . Time 58 | . . . . . . . . . 58 . . . . . . . . . . . . . . . . . . Total Robot Build Rating 6 | . . . . . . . . . 6 . . . . . . . . . . . . . . . . . . Part Schematics Acquired 17 | . . . . . . . . . . . . 12 . . . 1 . . 4 . . . . . . . . Parts Built 2 | . . . . . . . . . . . . . . . . 1 . . . . . . . . . . 1 Authchips . | . . . . . . . . . . . . . . . . . . . . . . . . . . . . Time 262 | . . . . . . . . . . . . . . . . 169 . . . . . . . . . . 93 Total Part Build Rating 13 | . . . . . . . . . . . . . . . . 6 . . . . . . . . . . 7 Parts Repaired 4 | . . . . . . . . . . . . . . 2 . 1 . . . . . . . . . 1 . Time 222 | . . . . . . . . . . . . . . 74 . 70 . . . . . . . . . 78 . Parts Recycled . | . . . . . . . . . . . . . . . . . . . . . . . . . . . . Recycled Matter . | . . . . . . . . . . . . . . . . . . . . . . . . . . . . Retrieved Matter . | . . . . . . . . . . . . . . . . . . . . . . . . . . . . Retrieved Components 5 | . . . . . . . . . . . . . . . . . . . . . . . . . . . 5 Parts Scanalyzed . | . . . . . . . . . . . . . . . . . . . . . . . . . . . . Part Schematics Acquired . | . . . . . . . . . . . . . . . . . . . . . . . . . . . . Parts Damaged . | . . . . . . . . . . . . . . . . . . . . . . . . . . . . Bothacking | -11 -10 -10 -10 -9 -8 -8 -8 -8 -7 -7 -7 -7 -6 -6 -6 -5 -5 -5 -5 -4 -4 -4 -4 -4 -3 -3 -2 ------------ Run | Yrd Mat Min Exi Min Mat Gar Mat Gar Fac Low Low Dat Pro Fac Gar Fac Upp Upp Zhi Pro Fac Upp Upp War Pro Res Res Used RIF Installer 4 | . . . . . . 1 . 2 . . . . . . 1 . . . . . . . . . . . . Patrol Navigation 1 | . . . . . . . . 1 . . . . . . . . . . . . . . . . . . . Alert ID Control 1 | . . . . . . . . . . . . . . . 1 . . . . . . . . . . . . Structural Interface 1 | . . . . . . . . 1 . . . . . . . . . . . . . . . . . . . Robots Hacked 10 | . . . . . . . . . . . . . . . 6 . . . . . . . . . . 3 1 Non-combat 1 | . . . . . . . . . . . . . . . 1 . . . . . . . . . . . . Combat 9 | . . . . . . . . . . . . . . . 5 . . . . . . . . . . 3 1 Robot Hacks Applied 10 | . . . . . . . . . . . . . . . 6 . . . . . . . . . . 3 1 reboot_system 4 | . . . . . . . . . . . . . . . 1 . . . . . . . . . . 3 . overwrite_iff 5 | . . . . . . . . . . . . . . . 4 . . . . . . . . . . . 1 formatsys_low 1 | . . . . . . . . . . . . . . . 1 . . . . . . . . . . . . Relay Couplers Released 25 | . . . . . . 3 . 3 . . . . . . 16 . . . . . . . . . . 3 . Machine Destruction 16 | . . . . . . . . . . . . . . . 16 . . . . . . . . . . . . Programmers 9 | . . . . . . 3 . 3 . . . . . . . . . . . . . . . . . 3 . Attached 7 | . . . . . . . . . . . . . . . 4 . . . . . . . . . . 1 2 Fabnet Peak Effective % . | . . . . . . . . . . . . . . . . . . . . . . . . . . . . Robots Rewired . | . . . . . . . . . . . . . . . . . . . . . . . . . . . . Allies Hacked 1 | . . . . . . . . . . . . . . . . . . . . . . . . . . . 1 Hacks Repelled . | . . . . . . . . . . . . . . . . . . . . . . . . . . . . Allies | -11 -10 -10 -10 -9 -8 -8 -8 -8 -7 -7 -7 -7 -6 -6 -6 -5 -5 -5 -5 -4 -4 -4 -4 -4 -3 -3 -2 -------- Run | Yrd Mat Min Exi Min Mat Gar Mat Gar Fac Low Low Dat Pro Fac Gar Fac Upp Upp Zhi Pro Fac Upp Upp War Pro Res Res Total Allies 9 | . . . . . . . . . 2 . . . . . 5 1 . . . . . . . . . . 1 Largest Group 2 | . . . . . . . . . 2 . . . . . 1 1 . . . . . . . . . . 1 Highest-Rated Group 64 | . . . . . . . . . 42 . . . . . 41 26 . . . . . . . . . . 64 Highest-Rated Ally 64 | . . . . . . . . . 21 . . . . . 41 26 . . . . . . . . . . 64 Total Orders 10 | . . . . . . . . . . . . . . . . . 2 . . 1 7 . . . . . . RETURN 10 | . . . . . . . . . . . . . . . . . 2 . . 1 7 . . . . . . Ally Attacks 79 | . . . . . . . . . 7 . . . . . 7 . 22 . . 2 40 . . . . . 1 Total Damage 1559 | . . . . . . . . . 187 . . . . . 176 . 259 . . 72 865 . . . . . . Kills 8 | . . . . . . . . . . . . . . . . . 2 . . 2 4 . . . . . . Allies Corrupted 1 | . . . . . . . . . . . . . . . . . . . . . . . . . . . 1 Allies Melted . | . . . . . . . . . . . . . . . . . . . . . . . . . . . . Intel | -11 -10 -10 -10 -9 -8 -8 -8 -8 -7 -7 -7 -7 -6 -6 -6 -5 -5 -5 -5 -4 -4 -4 -4 -4 -3 -3 -2 ------- Run | Yrd Mat Min Exi Min Mat Gar Mat Gar Fac Low Low Dat Pro Fac Gar Fac Upp Upp Zhi Pro Fac Upp Upp War Pro Res Res Active Infowar (turns) 7268 | . . . . 18 881 178 . . 701 139 171 33 205 304 87 563 301 61 67 146 516 242 338 1073 44 722 478 Optics 785 | . . . . . . . . . . . 24 33 205 . . . . . . . . . . . . 523 . Sensors 6411 | . . . . 18 881 178 . . 701 139 147 . . 304 85 563 301 61 67 146 516 242 338 1073 44 143 464 Terrain 2332 | . . . . . . . . . . . . . . . 2 . . . . . 222 222 338 1073 44 431 . T.N.C. 2 | . . . . . . . . . . . . . . . . . . . . . . . . . . 2 . Cloaking 1863 | . . . . . . . . . . . . . . . . . . . . . 222 242 312 . . 615 472 Robot Analysis Total 7 | . . . . . . . . . . . . . . . . . . . 4 . . . . . . 2 1 Derelict Logs Recovered 12 | . . 2 . . . . . . . 1 1 . 2 . . . 1 . . 2 . 1 2 . . . . Drone Launches 16 | . . . . . . . . . . . . . . . . . 3 . . 2 11 . . . . . . Drone Recoveries 14 | . . . . . . . . . . . . . . . . . 3 . . 2 9 . . . . . . Exploration | -11 -10 -10 -10 -9 -8 -8 -8 -8 -7 -7 -7 -7 -6 -6 -6 -5 -5 -5 -5 -4 -4 -4 -4 -4 -3 -3 -2 ------------- Run | Yrd Mat Min Exi Min Mat Gar Mat Gar Fac Low Low Dat Pro Fac Gar Fac Upp Upp Zhi Pro Fac Upp Upp War Pro Res Res Turns Passed 12034 | 88 229 572 523 113 887 604 491 1148 816 141 182 33 231 409 951 563 301 61 72 146 516 242 338 1073 44 722 538 Spaces Moved 14885 | 40 107 289 271 50 547 391 333 678 1236 339 387 84 510 740 1324 1075 604 161 149 422 1071 579 663 409 151 1153 1122 Core 98 | 7 . . . . . . . . . . . . . . . . . . . . . . . . . . 91 Treads . | . . . . . . . . . . . . . . . . . . . . . . . . . . . . Legs 2759 | 33 107 289 271 50 547 391 333 678 60 . . . . . . . . . . . . . . . . . . Wheels . | . . . . . . . . . . . . . . . . . . . . . . . . . . . . Hover 12028 | . . . . . . . . . 1176 339 387 84 510 740 1324 1075 604 161 149 422 1071 579 663 409 151 1153 1031 Flight . | . . . . . . . . . . . . . . . . . . . . . . . . . . . . Fastest Speed 18 | 50 120 190 190 190 120 125 122 120 36 36 36 38 38 38 38 33 38 38 33 33 28 28 28 21 28 24 18 Average Speed 54 | 127 180 190 190 190 122 125 123 121 43 36 39 38 38 38 41 37 38 38 37 33 28 28 28 30 28 26 32 Slowest Speed 200 | 200 190 190 190 190 193 125 125 190 120 36 100 38 38 38 96 110 38 38 104 33 28 28 28 94 28 84 136 Overloaded Moves 179 | . . . . . . . . . . . . . . . . . . . . . . . . 12 . . 167 Propulsion Burnouts 2 | . . . . . . . . . . . . . . . . . . . . . . . . . . . 2 Robots Hopped . | . . . . . . . . . . . . . . . . . . . . . . . . . . . . Potential Cave-ins 10 | . . . . . . . . . . . . . 2 . . . . . . . . . 3 . . . 5 Cave-ins Triggered . | . . . . . . . . . . . . . . . . . . . . . . . . . . . . Exploration Rate (%) 48 | 3 29 70 63 16 57 48 33 81 35 62 55 75 61 19 90 27 77 41 62 51 27 74 64 33 41 30 39 Regions Visited 27 Branch Regions 15 Pre-discovered Areas 7 | . . . . . . . . . . . 1 1 . . . . . . 3 1 . . 1 . . . . Known Exits Taken 20 | . . . 1 . 1 . 1 . 1 1 1 1 1 1 . 1 1 1 1 1 1 1 1 1 1 1 . Unknown Exits Taken 4 | 1 1 1 . 1 . . . . . . . . . . . . . . . . . . . . . . . Scrap Searched 19 | . . 1 . . . . . . . 4 1 . 4 . . . 3 1 . 1 . 2 2 . . . . Spaces Dug 107 | . . . . . . . 2 . 2 8 . . 7 5 15 1 . . . 10 12 3 20 2 . 6 14 Terrain Destroyed 299 | . . 3 . . 36 2 20 16 9 8 3 . 9 10 69 1 . . . 10 13 25 24 2 . 20 19 Melee 48 | . . . . . . . 2 . 2 . . . . . . . . . . . 11 1 12 . . 6 14 Projectile 87 | . . . . . 6 2 . 1 7 8 3 . 9 10 2 1 . . . . 2 3 12 2 . 14 5 AOE 164 | . . 3 . . 30 . 18 15 . . . . . . 67 . . . . 10 . 21 . . . . . Terrain Rammed . | . . . . . . . . . . . . . . . . . . . . . . . . . . . . Walls Destroyed . | . . . . . . . . . . . . . . . . . . . . . . . . . . . . Machines Disabled . | . . . . . . . . . . . . . . . . . . . . . . . . . . . . Actions | -11 -10 -10 -10 -9 -8 -8 -8 -8 -7 -7 -7 -7 -6 -6 -6 -5 -5 -5 -5 -4 -4 -4 -4 -4 -3 -3 -2 --------- Run | Yrd Mat Min Exi Min Mat Gar Mat Gar Fac Low Low Dat Pro Fac Gar Fac Upp Upp Zhi Pro Fac Upp Upp War Pro Res Res Total 17900 | 58 124 300 280 56 708 461 379 871 1441 348 399 84 532 835 1640 1209 666 160 162 426 1213 635 778 1354 151 1405 1225 Wait 1765 | . 5 2 . . 63 5 10 61 93 4 5 . 11 52 142 77 58 . . 3 60 21 85 942 . 53 13 Move 14856 | 39 106 288 270 49 546 390 332 676 1235 338 386 83 509 739 1322 1074 603 160 148 421 1070 578 662 408 150 1152 1122 Hop . | . . . . . . . . . . . . . . . . . . . . . . . . . . . . Pick Up 120 | 4 1 4 5 . 14 4 1 8 15 . . . 3 6 7 8 . . 1 . 9 2 . . . 23 5 Fast Attach 34 | 6 1 . . 1 3 . . 4 4 . 1 . . . 1 1 . . 1 . . . . . . 2 9 Attach 47 | . . . . . 2 . . 6 2 . . 1 . 4 5 2 . . . . 8 . . . 1 8 8 Detach 4 | . 1 . . . . . . . . . . . . 1 1 . . . . . . . . . . . 1 Swap 187 | . . . . . 7 1 7 6 27 2 . . 1 10 14 15 . . 9 1 6 8 3 1 . 43 26 Drop 96 | 1 . . . . 13 4 2 2 16 . . . . 5 2 10 . . 3 . 9 . . . . 20 9 Fire 536 | 8 10 6 . 6 60 47 25 101 41 4 7 . 7 17 68 12 . . . 1 13 7 15 3 . 60 18 Melee 114 | . . . . . . . 2 2 8 . . . . . . 7 5 . . . 38 8 12 . . 18 14 Ram 1 | . . . . . . . . . . . . . . 1 . . . . . . . . . . . . . Kick . | . . . . . . . . . . . . . . . . . . . . . . . . . . . . Crush . | . . . . . . . . . . . . . . . . . . . . . . . . . . . . Escape Stasis 100 | . . . . . . 10 . 5 . . . . . . 59 . . . . . . . . . . 26 . Rewire 18 | . . . 5 . . . . . . . . . . . 13 . . . . . . . . . . . . Trap 22 | . . . . . . . . . . . . . 1 . 6 3 . . . . . 11 1 . . . . Miscellaneous . | . . . . . . . . . . . . . . . . . . . . . . . . . . . . Route ------- -11/Scrapyard -10/Materials -10/Mines (discovered 2 exits: [*Mat] / *Exi) -10/Exiles (discovered 2 exits: *Min x2) -9/Mines -8/Materials (discovered 3 exits: *Fac / *Sto / Gar) -8/Garrison (discovered 4 exits: *Fac x3 / *Mat) -8/Materials (discovered 2 exits: *Fac / Gar) -8/Garrison (discovered 3 exits: *Fac x3) -7/Factory (discovered 3 exits: *Fac / *Low x2) -7/Lower Caves -7/Lower Caves -7/Data Miner -6/Proximity Caves -6/Factory (discovered 3 exits: *Fac x2 / Gar) -6/Garrison (discovered 3 exits: *Fac x3) -5/Factory (discovered 2 exits: *Upp x2) -5/Upper Caves -5/Upper Caves (discovered 2 exits: *Fac / *Zhi) -5/Zhirov -4/Proximity Caves -4/Factory (discovered 2 exits: Res / *Upp) -4/Upper Caves -4/Upper Caves (discovered 2 exits: *Res / *War) -4/Warlord -3/Proximity Caves -3/Research (discovered 2 exits: *Res x2) -2/Research (discovered 3 exits: *Acc x3) History --------- Turn | Location | Event 23 | -11/Scrapyard | Discovered new exit (range 16) 89 | -11/Scrapyard | Entered Materials 301 | -10/Materials | Discovered new exit (range 9) 304 | -10/Materials | Build established: Mutant 318 | -10/Materials | Entered Mines 344 | -10/Mines | Met a Derelict bent on vengeance 588 | -10/Mines | Learned Materials interactive machine intel 699 | -10/Mines | Deemed a non-threat by the Exiles lab entrance 699 | -10/Mines | Discovered new exit (range 5) 791 | -10/Mines | Discovered new exit (range 5) 890 | -10/Mines | Entered Exiles 891 | -10/Exiles | Identified exit to Mines 941 | -10/Exiles | Met 8R-AWN 971 | -10/Exiles | Met EX-HEX 1073 | -10/Exiles | Met EX-BIN 1102 | -10/Exiles | Aligned with FarCom system 1104 | -10/Exiles | Given EX-Vault access code 1189 | -10/Exiles | Opened EX-Vault 1201 | -10/Exiles | Found Latent Energy Streamer 1209 | -10/Exiles | Found Gui. Plasma Cannon 1248 | -10/Exiles | Warned to stay clear of 0b10 Research branches 1311 | -10/Exiles | Met EX-DEC 1413 | -10/Exiles | Stole two prototypes: Latent Energy Streamer, Gui. Plasma Cannon 1413 | -10/Exiles | Entered Mines 1451 | -9/Mines | Discovered new exit (range 15) 1496 | -9/Mines | Found a damaged Exp. Sensor Array with a note attached 1500 | -9/Mines | Found Prototype Device 1500 | -9/Mines | Identified Exp. Sensor Array 1526 | -9/Mines | Entered Materials 1526 | -8/Materials | Evolved 4 slots: Propulsion x2, Utility x2 1527 | -8/Materials | Loaded intel: 19 interactive machine locations 1794 | -8/Materials | Build established: Skirmisher 2122 | -8/Materials | Discovered new exit (range 6) 2127 | -8/Materials | Identified exit to Storage 2258 | -8/Materials | Discovered new exit (range 16) 2412 | -8/Materials | Identified exit to Garrison 2413 | -8/Materials | Entered Garrison 2436 | -8/Garrison | Learned Factory security intel 2465 | -8/Garrison | Installed Relay Interface Framework 2792 | -8/Garrison | Discovered new exit (range 45) 2792 | -8/Garrison | Discovered new exit (range 81) 2792 | -8/Garrison | Discovered new exit (range 12) 2792 | -8/Garrison | Discovered new exit (range 56) 2810 | -8/Garrison | Identified exit to Factory 2853 | -8/Garrison | Triggered checkpoint 2981 | -8/Garrison | Triggered checkpoint 3010 | -8/Garrison | Identified exit to Materials 3011 | -8/Garrison | Build established: Mutant 3017 | -8/Garrison | Entered Materials 3166 | -8/Materials | Gui. Plasma Cannon suddenly broke down 3290 | -8/Materials | Discovered exit to Factory (range 7) 3473 | -8/Materials | System corruption reached 10% 3506 | -8/Materials | Identified exit to Garrison 3508 | -8/Materials | Entered Garrison 3566 | -8/Garrison | Triggered checkpoint 3694 | -8/Garrison | Triggered checkpoint 3876 | -8/Garrison | Expanded RIF knowledge: Structural Interface 3902 | -8/Garrison | Discovered exit to Factory (range 10) 3980 | -8/Garrison | Expanded RIF knowledge: Patrol Navigation 4053 | -8/Garrison | Learned Factory security intel 4150 | -8/Garrison | Triggered checkpoint 4217 | -8/Garrison | Lost 3 parts (1p1n1w) 4330 | -8/Garrison | Triggered checkpoint 4464 | -8/Garrison | Build established: Scavenger-Mutant 4494 | -8/Garrison | Discovered exit to Factory (range 5) 4636 | -8/Garrison | Triggered checkpoint 4644 | -8/Garrison | Discovered exit to Factory (range 10) 4656 | -8/Garrison | Entered Factory 4656 | -7/Factory | Evolved 2 slots: Propulsion x1, Utility x1 4658 | -7/Factory | FarCom data flow suspended 4746 | -7/Factory | Fabricated H-55 Commando? 5207 | -7/Factory | Build established: Mutant 5341 | -7/Factory | Identified exit to Lower Caves 5350 | -7/Factory | Discovered new exit (range 11) 5472 | -7/Factory | Entered Lower Caves 5507 | -7/Lower Caves | Spotted B-75 Beast 5568 | -7/Lower Caves | Encountered a Warlord checkpoint 5576 | -7/Lower Caves | Learned Factory interactive machine intel 5593 | -7/Lower Caves | Discovered new exit (range 13) 5609 | -7/Lower Caves | Identified exit to Lower Caves 5613 | -7/Lower Caves | Entered another Lower Caves area 5627 | -7/Lower Caves | Learned location of Zion (-6) 5748 | -7/Lower Caves | Spotted G0-9AO(f) 5749 | -7/Lower Caves | Encountered a Master Thief 5749 | -7/Lower Caves | Spotted C5-AS8(f) 5749 | -7/Lower Caves | Spotted UA-EYF(f) 5749 | -7/Lower Caves | Spotted 7Y-PTD(f) 5750 | -7/Lower Caves | Encountered a Master Thief 5750 | -7/Lower Caves | Encountered a Master Thief 5750 | -7/Lower Caves | Encountered a Master Thief 5750 | -7/Lower Caves | Spotted 4T-VED(f) 5751 | -7/Lower Caves | Encountered a Master Thief 5752 | -7/Lower Caves | Destroyed G0-9AO(f) 5754 | -7/Lower Caves | Broken Gui. Plasma Cannon stolen by Master Thief 5756 | -7/Lower Caves | Latent Energy Streamer stolen by Master Thief 5760 | -7/Lower Caves | Exp. Sensor Array stolen by Master Thief 5766 | -7/Lower Caves | Cld. Airjet stolen by Master Thief 5775 | -7/Lower Caves | Discovered new exit (range 13) 5786 | -7/Lower Caves | Identified exit to Data Miner 5795 | -7/Lower Caves | Entered Data Miner 5796 | -7/Data Miner | Discovered new exit (range 6) 5801 | -7/Data Miner | Met Data Miner 5813 | -7/Data Miner | Learned location of Section 7 (-2) 5813 | -7/Data Miner | Acquired the access code to Warlord's prototype stash 5819 | -7/Data Miner | Received God Mode back door access code from Data Miner 5827 | -7/Data Miner | Identified exit to Proximity Caves 5828 | -7/Data Miner | Entered Proximity Caves 5863 | -6/Proximity Caves | Spotted B-75 Beast 5941 | -6/Proximity Caves | Learned Factory terminal intel 5973 | -6/Proximity Caves | Learned location of 1 exit from Factory 6053 | -6/Proximity Caves | Discovered new exit (range 13) 6058 | -6/Proximity Caves | Identified exit to Factory 6059 | -6/Proximity Caves | Entered Factory 6059 | -6/Factory | Evolved 2 slots: Utility x2 6060 | -6/Factory | Identified exit to Factory 6062 | -6/Factory | Loaded intel: 54 interactive machine locations 6063 | -6/Factory | Loaded intel: 26 terminal locations 6198 | -6/Factory | Repaired Broken Cld. Pulse Rifle? 6217 | -6/Factory | Repaired Enh. Autogun? 6337 | -6/Factory | Discovered exit to Factory (range 13) 6358 | -6/Factory | Build established: Hacker-Mutant 6468 | -6/Factory | Identified exit to Garrison 6468 | -6/Factory | Entered Garrison 6502 | -6/Garrison | Garrison Relay disabled 6507 | -6/Garrison | Learned Factory security intel 6538 | -6/Garrison | Triggered checkpoint 6684 | -6/Garrison | Discovered exit to Factory (range 10) 6776 | -6/Garrison | Triggered checkpoint 6784 | -6/Garrison | Garrison Relay disabled 6848 | -6/Garrison | Triggered checkpoint 6913 | -6/Garrison | Discovered exit to Factory (range 8) 7054 | -6/Garrison | Garrison Relay disabled 7296 | -6/Garrison | Triggered checkpoint 7364 | -6/Garrison | Lost 4 parts (2n1u1w) 7365 | -6/Garrison | Expanded RIF knowledge: Alert ID Control 7383 | -6/Garrison | Garrison Relay disabled 7399 | -6/Garrison | Discovered exit to Factory (range 11) 7419 | -6/Garrison | Entered Factory 7419 | -5/Factory | Accompanied by 1 ally 7419 | -5/Factory | Evolved 2 slots: Propulsion x1, Weapon x1 7571 | -5/Factory | Repaired Cld. Pulse Rifle 7635 | -5/Factory | Spotted B-75 Beast 7703 | -5/Factory | Identified exit to Upper Caves 7905 | -5/Factory | Fabricated Combat Drone Bay? 7982 | -5/Factory | Entered Upper Caves 8111 | -5/Upper Caves | Learned 8 Factory zone layouts 8190 | -5/Upper Caves | Build established: Bothacker-Mutant 8280 | -5/Upper Caves | Discovered new exit (range 9) 8283 | -5/Upper Caves | Identified exit to Upper Caves 8283 | -5/Upper Caves | Entered another Upper Caves area 8284 | -5/Upper Caves | Discovered new exit (range 7) 8286 | -5/Upper Caves | Identified exit to Factory 8340 | -5/Upper Caves | Discovered new exit (range 15) 8344 | -5/Upper Caves | Identified exit to Zhirov 8344 | -5/Upper Caves | Entered Zhirov 8344 | -5/Zhirov | Discovered new exit (range 3) 8351 | -5/Zhirov | Met Zhirov 8360 | -5/Zhirov | Learned location of Testing (-2) 8360 | -5/Zhirov | Learned location of Quarantine (-3) 8360 | -5/Zhirov | Learned location of Command (-1) 8365 | -5/Zhirov | Zhirov requested help retrieving the SGEMP Prototype 8371 | -5/Zhirov | Found Alien Artifact 8371 | -5/Zhirov | Identified Integrated Reactor 8371 | -5/Zhirov | Installed Integrated Reactor, increased core energy generation (+10) 8416 | -5/Zhirov | Identified exit to Proximity Caves 8416 | -5/Zhirov | Entered Proximity Caves 8552 | -4/Proximity Caves | Learned Research emergency access door positions 8557 | -4/Proximity Caves | Discovered exit to Factory (range 4) 8562 | -4/Proximity Caves | Entered Factory 8562 | -4/Factory | Evolved 2 slots: Power x1, Propulsion x1 8563 | -4/Factory | Identified exit to Research 8685 | -4/Factory | Build established: Bothacker-Sprinter 9073 | -4/Factory | Discovered new exit (range 4) 9077 | -4/Factory | Identified exit to Upper Caves 9078 | -4/Factory | Entered Upper Caves 9078 | -4/Upper Caves | Spotted LR-KJS(f) 9080 | -4/Upper Caves | Encountered a Master Thief 9084 | -4/Upper Caves | Learned 4 Research zone layouts 9306 | -4/Upper Caves | Build established: Bothacker-Ninja 9307 | -4/Upper Caves | Entered a destroyed Warlord outpost 9317 | -4/Upper Caves | Discovered new exit (range 9) 9319 | -4/Upper Caves | Identified exit to Upper Caves 9320 | -4/Upper Caves | Entered another Upper Caves area 9320 | -4/Upper Caves | Discovered exit to Research (range 10) 9338 | -4/Upper Caves | Learned Research terminal intel 9462 | -4/Upper Caves | Attracted the attention of an 0b10 checkpoint 9524 | -4/Upper Caves | Spotted B-86 Titan 9658 | -4/Upper Caves | Discovered new exit (range 4) 9658 | -4/Upper Caves | Identified exit to Warlord 9658 | -4/Upper Caves | Entered Warlord 9673 | -4/Warlord | Discovered new exit (range 15) 9701 | -4/Warlord | Opened side exit 9704 | -4/Warlord | RIF detected upon attempting to enter Warlord's base 9704 | -4/Warlord | Attacked by Warlord forces 9872 | -4/Warlord | Warlord's base attacked by MAIN.C 9942 | -4/Warlord | Build established: Bothacker-Scout 10222 | -4/Warlord | Warlord forces counterattacked 10547 | -4/Warlord | Warlord base infiltrated, sounded retreat 10608 | -4/Warlord | Spotted B-90 Cyclops 10608 | -4/Warlord | Spotted 77-CM1(K) 10731 | -4/Warlord | Identified exit to Proximity Caves 10731 | -4/Warlord | Entered Proximity Caves 10771 | -3/Proximity Caves | Discovered exit to Research (range 7) 10775 | -3/Proximity Caves | Entered Research 10775 | -3/Research | Evolved 2 slots: Utility x2 10776 | -3/Research | Identified exit to Research 10778 | -3/Research | Loaded intel: 20 terminal locations 10816 | -3/Research | Found Prototype Device 10816 | -3/Research | Identified Exp. Focal Shield 10973 | -3/Research | Spotted B-86 Titan 11013 | -3/Research | Discovered exit to Research (range 14) 11137 | -3/Research | Repaired Broken Cmb. Gravmag System? 11155 | -3/Research | Spotted B-86 Titan 11200 | -3/Research | Build established: Bothacker-Sprinter 11207 | -3/Research | System corruption reached 10% 11237 | -3/Research | Lost 4 parts (1p2n1u) 11270 | -3/Research | Found Prototype Processor 11270 | -3/Research | Identified Spectral Analyzer 11330 | -3/Research | Found Prototype Hackware 11330 | -3/Research | Identified Exp. Hacking Suite 11333 | -3/Research | Found Prototype Launcher 11333 | -3/Research | Identified Tactical Quantum Warhead 11497 | -3/Research | Entered another Research area 11497 | -2/Research | Evolved 2 slots: Propulsion x1, Utility x1 11594 | -2/Research | Spotted B-90 Cyclops 11693 | -2/Research | Spotted B-90 Cyclops 11732 | -2/Research | Identified exit to Access 11795 | -2/Research | Fabricated Assault Drone Bay? 11806 | -2/Research | Build established: Scavenger-Sprinter 11958 | -2/Research | Lost 6 parts (1p5n) 11999 | -2/Research | Core integrity fell below 50% 12028 | -2/Research | Core integrity fell below 20% 12035 | -2/Research | Destroyed by S-43 Plague with Heavy Machine Gun Last Messages --------------- 12000_ Imp. Antigrav System destroyed. 12002_ Plasma Lance destroyed. 12003_ RIF reveals location of hidden door. 12006_ Connecting with Garrison Access... >>Seal Access door sealed. 12015_ System corrupted: Substantial component data lost. 12017_ Penetrated by Slug. 12021_ Imp. Antigrav System destroyed. 12021_ Slug penetrates Wall. 12022_ Penetrated by Slug. 12025_ Cmb. Linear Gravjet destroyed. 12027_ Penetrated by Slug. 12027_ Relay Coupler [Sentry] destroyed. 12027_ Penetrated by Slug. 12027_ Adv. Target Analyzer destroyed. 12032_ Penetrated by Slug. 12035_ Slug penetrates Ion Accelerator. 12035_ Penetrated by Slug. Map ----- +----------------------------------------------------+ | ????# # #??????# """ # #?? | | ????# # ######## """ ############# | | ????# # """ # """ | | ????# # """ + | | ????# # """ # | | ##### # """ # | | # # """ # ###+#############+## | | # # # # #?##### | | # # # # #?# + | | + ########## # #?# ### | | # #????????# # ![[#?# #?# | | # #????????# # ![[#?# #?# | | # #????????# # ! ![[#?# #?# | | # #????????####+### # #?# #?# | | ##### #?????????? # t# #?# #?# | | #???# #?????????# # ########+####+### | | #???# +?????????# # # #### | | #???? #?????????# # # #??? | | ####? #?????????# # # """ #??? | | ########### # + "Y" #??? | | ####?##### ## # # " " #??? | | ?????????# ## # # ! ! ]#??? | | ?????????#"" ######## # #??? | | ?????????#"" # h! # = #??? | | ?????????#"T ! # # #??? | | ?????????#"" # @ h ##########??? | | ?????????#"" sss """ #???????????? | | ?????????# # """ ########???????????? | | ?????????# # """ #?????????????###### | | ########+#####+#### """ ############### | | """ # | | # " | | # """ | | + """ | | #+######+###########/#############+##### # """ | | ?????????????????? ?????# # # """ | | ???????????????? ???# # # | | ??????????????# ?# ""###### | | ??????????????# ## ""#????###### | | ??????????????# ##"""" ""#?????????? | | ??????????????# ##"""" T#?????????? | | ??????????????# ##"""" ""#?????????? | | ??????????????# !! ##"""" ""#?????????? | | ??????????????# !! ## " ""#?????????? | | ??????????????# != ## #?????????? | | ??????????????# ! ## #?????????? | | ??????????????# ## ] #?????????? | | ???????????????############?############?????????? | | | | | +----------------------------------------------------+ Best States ------------- Heat Dissipation 84 Energy Generation 59 Energy Capacity 590 Matter Stores 300 Matter Capacity 300 Sight Range 22 Robot Scan Range 20 Terrain Scan Range 20 Terrain Scan Density 10 Cloak Strength 3 Base Temperature (-) 200 Armor Coverage 225 Resistance: EM 20 Propulsion Shielding 66 Evasion (%) 61 Target Analysis 8 Core Analysis 6 Offensive Hacking 30 Defensive Hacking 12 Relay Coupler Types 3 Relay Coupler Value 74 Authchip Count 1 Trap Extractor Capacity 8 Item Schematics ----------------- Combat Drone Bay | -7/Data Miner | Free Lgt. Regenerative Plating | -7/Data Miner | Free Biomechanical Wings | -7/Data Miner | Free Exp. Utility Shielding | -7/Data Miner | Free Gui. EMP Blaster | -7/Data Miner | Free Hvy. Treads | -7/Data Miner | Free Imp. Coolant Injector | -7/Data Miner | Free KE Penetrator | -7/Data Miner | Free Fission Core | -7/Data Miner | Free Imp. Transmission Jammer | -7/Data Miner | Free Imp. Plasma Cutter | -7/Data Miner | Free Adv. Thermal Shield | -7/Data Miner | Free Imp. Remote Datajack | -5/Factory | Hacked Assault Drone Bay | -5/Zhirov | Free Exp. Heat Sink | -5/Zhirov | Free Exp. Optical Array | -5/Zhirov | Free Imp. Arc Thrower | -5/Zhirov | Free Robot Schematics ------------------ B-48 Gladiator | -7/Data Miner | Free H-66 Slayer | -7/Data Miner | Free G-47 Trooper | -7/Data Miner | Free Fabricated ------------ H-55 Commando | x2 | -7/Factory | Preloaded Combat Drone Bay | x1 | -5/Factory Assault Drone Bay | x1 | -2/Research Repaired ---------- Cld. Pulse Rifle | 95% | -6/Factory | Broken Enh. Autogun | 10% | -6/Factory Cld. Pulse Rifle | 11% | -5/Factory Cmb. Gravmag System | 78% | -3/Research | Broken Alien Tech Used ----------------- Integrated Reactor Achievements -------------- None Challenges ------------ None Game ------ Seed VisualInsulatedLink Manual? 0 Play Time 03:12:24 Cumulative 308.5 hours Start 2025.06.25 @ 21:43:38 End 2025.06.27 @ 10:13:40 Sessions 3 Manual Loads 0 Difficulty Rogue Special Mode None Game No. 134 Rogue 120 Adventurer 14 Explorer 0 Win Type - Total 18 Types 15/0/1/1/0/0/0/0/1/0 Lore% 62 Gallery% 72 Achievement% 67 Wizard Run 0 Options --------- Layout 1 ASCII 0 Keyboard 0 Movement Arrows Keybinds 0 Fullscreen 1 Font 32/SmallcapsGlow Map View 50x40 Zoom Use 0% Tactical HUD 1 Map Filters NONE Filters NONE Steam 1 RUN: 56886b82-1ab9-4d7e-b871-0da56dc347cc